Cogmind - Beta 14 @@@ ROGUE MODE // 2025.03.07 @ 18:11:57 Player: G4-R3D Result: Destroyed by D-53 Grenadier with Mini Grenade Launcher Performance ------------- Evolutions (0) 0 Regions Visited (4) 800 Robots Destroyed (7) 35 Value Destroyed (76) 76 Prototype IDs (0) 0 Alien Tech Used (0) 0 Bonus (0) 0 TOTAL SCORE: 911 Bonus ------- None Cogmind --------- Core Integrity 0/250 Matter 282/300 Energy 100/100 System Corruption 6% Temperature Cool (1) Movement Flying (40) Location -9/Mines Parts ------- > --- POWER (1) -------- (None) > --- PROPULSION (2) --- Flight Unit > --- UTILITY (2) ------ Signal Interpreter Hacking Suite > --- WEAPON (2) ------- (None) > --- INVENTORY (5) ---- Light Ion Engine Flight Unit EM Shotgun Peak State ------------ > --- POWER ------------ Light Ion Engine > --- PROPULSION ------- Flight Unit Flight Unit > --- UTILITY ---------- Signal Interpreter Hacking Suite > --- WEAPON ----------- EM Shotgun EM Shotgun > --- INVENTORY -------- Light Ion Engine Flight Unit Flight Unit Flight Unit Flight Unit [Rating: 11] Favorites ----------- Power Light Ion Engine Engine Light Ion Engine Propulsion Flight Unit Flight Unit Flight Unit Utility Signal Interpreter Processor Signal Interpreter Hackware Hacking Suite Weapon Assault Rifle Energy Gun EM Shotgun Ballistic Gun Assault Rifle Build | -11 -10 -10 -10 -9 ------- Run | Yrd Mat Min Exi Min Slots Evolved . | . . . . . Power . | . . . . . Propulsion . | . . . . . Utility . | . . . . . Weapon . | . . . . . Parts Attached 16 | 2 12 . . 2 Power 2 | . 2 . . . Engine 2 | . 2 . . . Core . | . . . . . Reactor . | . . . . . Propulsion 7 | . 5 . . 2 Treads . | . . . . . Leg . | . . . . . Wheel . | . . . . . Hover . | . . . . . Flight 7 | . 5 . . 2 Utility 2 | . 2 . . . Device . | . . . . . Storage . | . . . . . Processor 1 | . 1 . . . Hackware 1 | . 1 . . . Protection . | . . . . . Artifact . | . . . . . Weapon 5 | 2 3 . . . Energy Gun 2 | . 2 . . . Energy Cannon . | . . . . . Ballistic Gun 3 | 2 1 . . . Ballistic Cannon . | . . . . . Launcher . | . . . . . Special Weapon . | . . . . . Impact Weapon . | . . . . . Slashing Weapon . | . . . . . Piercing Weapon . | . . . . . Special Melee Weapon . | . . . . . Unidentified Prototypes . | . . . . . Parts Lost 6 | . 1 . . 5 Power 1 | . . . . 1 Propulsion 4 | . 1 . . 3 Utility . | . . . . . Weapon 1 | . . . . 1 Highest Loss Streak 5 | . 1 . . 5 To Critical Strikes . | . . . . . Average Slot Usage (%) 82 | . 65 100 100 82 Engine 10 | . 8 14 14 8 Flight 24 | . 20 28 28 26 Processor 10 | . 4 14 14 14 Hackware 9 | . 3 14 14 14 Energy Gun 7 | . 1 14 14 8 Ballistic Gun 18 | . 26 14 14 8 Peak Build Rating 11 | 2 11 10 10 10 Average Rating 7 | 1 5 10 10 8 On Entrance 6 | . 2 10 10 10 Naked Turns . | . . . . . Heaviest Build 9 | 3 9 8 8 8 Greatest Support 8 | 3 8 8 8 8 Greatest Overweight (x) 1 | . 1 . . . Average Overweight (x) . | . . . . . Largest Inventory Capacity 5 | 5 5 5 5 5 Average Capacity 5 | 5 5 5 5 5 Most Carried 5 | . 5 5 5 5 Average Carried 3 | . 1 4 5 4 Final Capacity 5 | 5 5 5 5 5 Final Carried 5 | . 5 5 5 3 Class Distribution -------------------- 58% | Scavenger-Mutant 41% | Mutant Dominant Class ---------------- Mutant | -10/Materials Mutant | -10/Mines Scavenger-Mutant | -10/Exiles Scavenger-Mutant | -9/Mines Resources | -11 -10 -10 -10 -9 ----------- Run | Yrd Mat Min Exi Min Matter Collected 402 | 220 83 . 96 3 Remotely . | . . . . . Salvage Created 91 | . 91 . . . Parts 16 | . 16 . . . Haulers Intercepted . | . . . . . Recyclers Shooed . | . . . . . Parts Field Recycled . | . . . . . Retrieved Matter . | . . . . . Parts Self-Destructed . | . . . . . Prevented . | . . . . . Kills | -11 -10 -10 -10 -9 ------- Run | Yrd Mat Min Exi Min Combat Hostiles Destroyed 6 | . 6 . . . Guns 6 | . 6 . . . Classes Destroyed 2 | . 2 . . . Operator 1 | . 1 . . . Swarmer 6 | . 6 . . . Best Kill Streak 4 | . 4 . . . Combat Bots Only 3 | . 3 . . . Max Kills in Single Turn 2 | . 2 . . . Gunslinging 1 | . 1 . . . Exploded . | . . . . . Melee . | . . . . . Uniques/NPCs Destroyed . | . . . . . Combat | -11 -10 -10 -10 -9 -------- Run | Yrd Mat Min Exi Min Hostile Shots Fired 70 | . 50 . . 20 Missed 29 | . 22 . . 7 Damage Taken 568 | . 267 . . 301 Core 279 | . 114 . . 165 Absorbed by Shields . | . . . . . Core Remaining (%) 100 | 100 . . . . Volleys Fired 17 | . 16 . . 1 Largest 2 | . 2 . . 2 Hottest 65 | . 40 . . 65 Shots Fired 34 | . 32 . . 2 Gun 34 | . 32 . . 2 Cannon . | . . . . . Launcher . | . . . . . Special . | . . . . . Kinetic 33 | . 32 . . 1 Thermal . | . . . . . Explosive . | . . . . . Electromagnetic 1 | . . . . 1 Robot Hit Streak 6 | . 6 . . 2 Robot Miss Streak 2 | . 2 . . 1 Penetration Max . | . . . . . Secondary Targets 2 | . 2 . . . Max Gunslinging Chain 1 | . 1 . . . Shots Hit Robots 22 | . 21 . . 1 Core Hits 13 | . 11 . . 2 Critical Kills . | . . . . . Critical Parts Destroyed 1 | . 1 . . . Critical Strikes 1 | . 1 . . . Destroy 1 | . 1 . . . Melee Attacks . | . . . . . Impact . | . . . . . Slashing . | . . . . . Piercing . | . . . . . Sneak Attacks . | . . . . . Combat Hostiles . | . . . . . Follow-up Attacks . | . . . . . Damage Inflicted 244 | . 228 . . 16 Guns 244 | . 228 . . 16 Cannons . | . . . . . Explosions . | . . . . . Melee . | . . . . . Ramming . | . . . . . Kinetic 228 | . 228 . . . Thermal . | . . . . . Explosive . | . . . . . Electromagnetic 16 | . . . . 16 Impact . | . . . . . Slashing . | . . . . . Piercing . | . . . . . Highest Corruption 6 | . 3 3 3 6 Average Corruption 2 | . 1 3 3 3 Corruption Purged . | . . . . . Corruption Blocked . | . . . . . Effects 7 | . 2 1 2 2 Message Errors 1 | . . . 1 . Matter Fused 2 | . . . . 2 Heat Flow Errors 2 | . 1 . 1 . Energy Discharges 1 | . 1 . . . Data Loss (major) 1 | . . 1 . . Overload Shots . | . . . . . Overflow Damage . | . . . . . Projectiles . | . . . . . Explosions . | . . . . . Melee . | . . . . . Knockbacks . | . . . . . Impact . | . . . . . Kinetic . | . . . . . Secondary . | . . . . . Self-Inflicted Damage . | . . . . . Shots . | . . . . . Rammed . | . . . . . Targets Rammed . | . . . . . Kicked . | . . . . . Crushed . | . . . . . Highest Temperature 130 | . 130 . 127 33 Average Temperature 33 | . 25 . 63 18 Received Heat Transfer 148 | . 96 . . 52 Siege Activations . | . . . . . Robots Corrupted . | . . . . . Combat Hostiles . | . . . . . Parts Fried . | . . . . . Impact Corruptions . | . . . . . Robots Melted . | . . . . . Combat Hostiles . | . . . . . Parts Melted . | . . . . . Heat Transferred . | . . . . . Parts Sabotaged . | . . . . . Parts Stolen . | . . . . . Parts Stripped . | . . . . . Power Chain Reactions . | . . . . . Alert | -11 -10 -10 -10 -9 ------- Run | Yrd Mat Min Exi Min Peak Influence 462 | . 462 180 . . Initial 180 | . . 180 . . Average 144 | . 200 180 . . Maximum Alert Level 2 | . 2 . . . Low Security (%) 73 | 100 58 100 . 100 Level 1 15 | . 24 . . . Level 2 10 | . 17 . . . Level 3 . | . . . . . Level 4 . | . . . . . Level 5 . | . . . . . High Security . | . . . . . Max Security . | . . . . . Squads Dispatched 6 | . 6 . . . Investigation 3 | . 3 . . . Extermination . | . . . . . Reinforcement 3 | . 3 . . . Assault . | . . . . . Garrison . | . . . . . Intercept . | . . . . . Searches Triggered . | . . . . . Construction Impeded . | . . . . . Haulers Reinforced . | . . . . . Active Scanning Responses . | . . . . . Cargo Convoy Interrupts . | . . . . . Stealth | -11 -10 -10 -10 -9 --------- Run | Yrd Mat Min Exi Min Distress Signals 2 | . 2 . . . Communications Jammed . | . . . . . Distress Signals . | . . . . . Times Spotted 46 | . 22 . . 24 Peak Tracking Total 17 | . 8 . . 17 Tactical Retreats 5 | . 3 . . 2 Traps | -11 -10 -10 -10 -9 ------- Run | Yrd Mat Min Exi Min Traps Triggered 1 | . 1 . . . Indirectly . | . . . . . Trap Hack Attempts . | . . . . . Triggered . | . . . . . Disarmed . | . . . . . Reprogrammed . | . . . . . Reused . | . . . . . Traps Extracted . | . . . . . Installed . | . . . . . Triggered . | . . . . . Machines | -11 -10 -10 -10 -9 ---------- Run | Yrd Mat Min Exi Min Machines Disabled . | . . . . . Max in Single Turn . | . . . . . Machines Repaired . | . . . . . Machines Dismantled . | . . . . . Machines Sabotaged . | . . . . . Overloaded Fab Kills . | . . . . . Hacking | -11 -10 -10 -10 -9 --------- Run | Yrd Mat Min Exi Min Machines Accessed 9 | . 5 . 4 . Terminals 3 | . 3 . . . Fabricators . | . . . . . Repair Stations . | . . . . . Recycling Units 2 | . 2 . . . Scanalyzers . | . . . . . Garrison Access . | . . . . . Total Hacks 15 | . 11 . 4 . Successful 8 | . 4 . 4 . Failed 7 | . 7 . . . Catastrophic 1 | . 1 . . . Database Lockouts . | . . . . . Manual 11 | . 11 . . . Terminals 9 | . 9 . . . Fabricators . | . . . . . Repair Stations . | . . . . . Recycling Units 2 | . 2 . . . Scanalyzers . | . . . . . Garrison Access . | . . . . . Terminal Hacks 5 | . 1 . 4 . Record 4 | . . . 4 . Branch Access Points 1 | . 1 . . . Fabricator Hacks . | . . . . . Repair Station Hacks . | . . . . . Recycling Unit Hacks . | . . . . . Scanalyzer . | . . . . . Garrison Access Hacks . | . . . . . Unauthorized Hacks 3 | . 3 . . . Terminals 1 | . 1 . . . Botnet 1 | . 1 . . . Fabricators . | . . . . . Repair Stations . | . . . . . Recycling Units 2 | . 2 . . . Tunnel 2 | . 2 . . . Scanalyzers . | . . . . . Garrison Access . | . . . . . Data Cores Recovered . | . . . . . Used . | . . . . . Hacking Detections 3 | . 3 . . . Full Trace Events 2 | . 2 . . . Feedback Events 1 | . 1 . . . Corruption 1 | . 1 . . . Feedback Blocked . | . . . . . Robot Schematics Acquired . | . . . . . Robots Built . | . . . . . Authchips . | . . . . . Time . | . . . . . Total Robot Build Rating . | . . . . . Part Schematics Acquired . | . . . . . Parts Built . | . . . . . Authchips . | . . . . . Time . | . . . . . Total Part Build Rating . | . . . . . Parts Repaired . | . . . . . Time . | . . . . . Parts Recycled . | . . . . . Recycled Matter . | . . . . . Retrieved Matter . | . . . . . Retrieved Components . | . . . . . Parts Scanalyzed . | . . . . . Part Schematics Acquired . | . . . . . Parts Damaged . | . . . . . Bothacking | -11 -10 -10 -10 -9 ------------ Run | Yrd Mat Min Exi Min Used RIF Installer . | . . . . . Robots Hacked . | . . . . . Non-combat . | . . . . . Combat . | . . . . . Robot Hacks Applied . | . . . . . Relay Couplers Released . | . . . . . Fabnet Peak Effective % . | . . . . . Robots Rewired . | . . . . . Allies Hacked . | . . . . . Hacks Repelled . | . . . . . Allies | -11 -10 -10 -10 -9 -------- Run | Yrd Mat Min Exi Min Total Allies 4 | . . 1 . 3 Largest Group 4 | . . 1 1 4 Highest-Rated Group 71 | . . 31 31 71 Highest-Rated Ally 31 | . . 31 31 31 Total Orders . | . . . . . Ally Attacks 22 | . . . . 22 Total Damage 258 | . . . . 258 Kills 6 | . . . . 6 Allies Corrupted . | . . . . . Allies Melted . | . . . . . Intel | -11 -10 -10 -10 -9 ------- Run | Yrd Mat Min Exi Min Robot Analysis Total . | . . . . . Derelict Logs Recovered 1 | . . . . 1 Drone Launches . | . . . . . Drone Recoveries . | . . . . . Exploration | -11 -10 -10 -10 -9 ------------- Run | Yrd Mat Min Exi Min Turns Passed 551 | 19 235 29 187 81 Spaces Moved 991 | 32 399 45 405 110 Core 125 | 32 85 . . 8 Treads . | . . . . . Legs . | . . . . . Wheels . | . . . . . Hover . | . . . . . Flight 866 | . 314 45 405 102 Fastest Speed 37 | 50 37 37 37 37 Average Speed 38 | 50 40 37 37 38 Slowest Speed 117 | 50 117 37 37 50 Overloaded Moves . | . . . . . Propulsion Burnouts . | . . . . . Robots Hopped 13 | . 6 . . 7 Cave-ins Triggered . | . . . . . Exploration Rate (%) 42 | 3 79 6 89 34 Regions Visited 4 Branch Regions 3 Pre-discovered Areas 2 | . 2 . . . Known Exits Taken 3 | . 1 1 1 . Unknown Exits Taken 1 | 1 . . . . Scrap Searched . | . . . . . Spaces Dug . | . . . . . Terrain Destroyed . | . . . . . Melee . | . . . . . Projectile . | . . . . . AOE . | . . . . . Terrain Rammed . | . . . . . Walls Destroyed . | . . . . . Machines Disabled . | . . . . . Actions | -11 -10 -10 -10 -9 --------- Run | Yrd Mat Min Exi Min Total 1103 | 33 432 57 441 140 Wait 85 | . 6 9 37 33 Move 965 | 31 386 44 404 100 Hop 9 | . 6 . . 3 Pick Up 6 | . 4 2 . . Fast Attach 8 | 2 6 . . . Attach 2 | . . . . 2 Detach . | . . . . . Swap 6 | . 6 . . . Drop 5 | . 2 2 . 1 Fire 17 | . 16 . . 1 Melee . | . . . . . Ram . | . . . . . Kick . | . . . . . Crush . | . . . . . Escape Stasis . | . . . . . Rewire . | . . . . . Trap . | . . . . . Miscellaneous . | . . . . . Route ------- -11/Scrapyard -10/Materials (discovered 3 exits: [*Mat] / *Min x2) -10/Mines -10/Exiles -9/Mines History --------- Turn | Location | Event 9 | -11/Scrapyard | Discovered new exit (range 16) 20 | -11/Scrapyard | Entered Materials 52 | -10/Materials | Identified exit to Mines 123 | -10/Materials | Discovered new exit (range 16) 255 | -10/Materials | Entered Mines 258 | -10/Mines | Received a Mining Laser from a helpful Derelict 265 | -10/Mines | Deemed a non-threat by the Exiles lab entrance 265 | -10/Mines | Discovered new exit (range 5) 276 | -10/Mines | Identified exit to Exiles 284 | -10/Mines | Entered Exiles 284 | -10/Exiles | Found Exiles lab abandoned 284 | -10/Exiles | Accompanied by 1 ally 446 | -10/Exiles | Discovered new exit (range 14) 451 | -10/Exiles | Identified exit to Mines 471 | -10/Exiles | Entered Mines 471 | -9/Mines | Accompanied by 1 ally 472 | -9/Mines | Assembled infested the area 472 | -9/Mines | Assisted by bots powering up and referring to "LRC-V3" 475 | -9/Mines | Core integrity fell below 50% 477 | -9/Mines | Assisted by a Guerilla fighting off Assembled 499 | -9/Mines | Build established: Scavenger-Mutant 525 | -9/Mines | Core integrity fell below 20% 534 | -9/Mines | Learned Materials interactive machine intel 552 | -9/Mines | Destroyed by D-53 Grenadier with Mini Grenade Launcher Last Messages --------------- 00520_ Flight Unit destroyed. 00520_ Dropped Assault Rifle. 00521_ as-36612 destroyed. 00522_ Flight Unit destroyed. 00524_ C-30 ARC bursts open, deploying its payload. 00524_ D-53 Grenadier unfolds itself. 00524_ K-01 Serf collects debris. 00527_ EM Shotgun destroyed. 00528_ as-09809 destroyed. 00528_ as-15512 destroyed. 00528_ as-79767 destroyed. 00530_ as-92386 destroyed. 00531_ K-01 Serf collects debris. 00534_ Acquired derelict log, extracted data. Data stored: Materials interactive machine intel. 00545_ System corrupted: Matter fused (-8). 00548_ Flight Unit destroyed. 00548_ System corrupted by crushing effect (+3). Map ----- +----------------------------------------------------+ | | | | | | | | | | | | | ??????????????????????????????????????? | | ??????????????????????????????????????? | | ??????????????????????????????????????? | | ??????????????????????????????????????? | | ??????????????????????????????????????? | | ???????###########????????????????????? | | ???????# #????????????????????? | | ???????# """ """ #????????????????????? | | ???????# """ """ #????????????????????? | | ???????# """ """ #????????????????????? | | ???????# #????????????????????? | | ???????# #????????????????????? | | ???????##### #####????????????????????? | | ???????????# #????????????????????????? | | ???????????# #????????????????????????? | | ????####???# #???????????????####?????? | | ????# ??# #??????????????## ##????? | | ????# """ ## ######????????## #????? | | ????# """ ##???????# #????? | | ????# """ @ ######### #????? | | ????# #### ##???? | | ????######??## #???? | | ???????????## ###### ##### #???? | | ???????????# ##????# #???## ##???? | | ????????#### ##????# #?????###????? | | ????????# ###### #????????????? | | ????????# d ##???????????? | | ????????# ### d #???????????? | | ????????##??# k #???????????? | | ???????????## ##???????????? | | ??????????## ##????????????? | | ???#??????# ##?????????????? | | ??# ?????## ##??????????????? | | ?? ?????## ###???????????????? | | ?# #???# ##????????????????? | | ?# ### ##???????????????? | | ?# ###?????????????? | | ??# #?????????????? | | ?????# #??????? | | ??####### % #??????? | | ??# #?## % #???????? | | ??# #??## # ##???????? | | ??# #???## # ### #????????? | | ??# ######%% ##???? #???????? | +----------------------------------------------------+ Best States ------------- Heat Dissipation 25 Energy Generation 10 Energy Capacity 125 Matter Stores 300 Matter Capacity 300 Sight Range 16 Terrain Scan Density 10 Evasion (%) 62 Offensive Hacking 10 Item Schematics ----------------- None Robot Schematics ------------------ None Fabricated ------------ Nothing Alien Tech Used ----------------- None Achievements -------------- None Challenges ------------ None Game ------ Seed MinesnifferPersonalFalx Manual? 0 Play Time 00:12:52 Cumulative 146.9 hours Start 2025.03.07 @ 18:00:24 End 2025.03.07 @ 18:11:57 Sessions 1 Manual Loads 0 Difficulty Rogue Special Mode None Game No. 73 Rogue 73 Adventurer 0 Explorer 0 Win Type - Total 8 Types 4/0/2/0/2/0/0/0/0 Lore% 65 Gallery% 64 Achievement% 57 Wizard Run 0 Options --------- Layout 1 ASCII 0 Keyboard 0 Movement Numpad Keybinds 0 Fullscreen 1 Font 24/Smallcaps Map View 50x35 Zoom Use 0% Tactical HUD 1 Map Filters NONE Filters NONE Steam 1 RUN: cdb9214e-4803-4dec-bdbc-9924487f2477